Cogmind - Beta 10.2 @@@ ROGUE MODE // 2021.01.28 @ 16:13:17 Player: Databurk Result: Destroyed by D-53 Grenadier with Mini Grenade Launcher Performance ------------- Evolutions (1) 500 Regions Visited (4) 800 Robots Destroyed (37) 185 Value Destroyed (923) 923 Prototype IDs (2) 40 Alien Tech Used (0) 0 Bonus (0) 0 TOTAL SCORE: 2448 Bonus ------- None Cogmind --------- Core Integrity 0/400 Matter 44/300 Energy 100/100 System Corruption 0% Temperature Cool (0) Movement Core (1100) Ox21 Location -9/Mines Parts ------- > --- POWER (1) -------- (None) > --- PROPULSION (2) --- (None) > --- UTILITY (4) ------ High-capacity Storage Unit High-capacity Storage Unit Improved Signal Interpreter Weapon Shielding > --- WEAPON (2) ------- (None) > --- INVENTORY (20) --- Faulty Heavy Ion Engine Improved Heat Sink High-capacity Storage Unit Large Matter Pod (0) Large Matter Pod (0) Improved Sensor Array Experimental Sensor Array Improved Targeting Computer Shield Generator Trap Extractor Heavy EM Pulse Gun Beam Rifle Peak State ------------ > --- POWER ------------ Heavy Ion Engine > --- PROPULSION ------- Light Treads Light Treads > --- UTILITY ---------- High-capacity Storage Unit High-capacity Storage Unit Improved Signal Interpreter Light Armor Plating > --- WEAPON ----------- Beam Rifle Beam Rifle > --- INVENTORY -------- Ion Engine Light Ion Engine Light Ion Engine Light Treads Light Treads Improved Heat Sink High-capacity Storage Unit Improved Sensor Array Experimental Sensor Array Weapon Shielding Light Armor Plating Shield Generator Beam Rifle Beam Cannon Beam Cannon [Rating: 16] Favorites ----------- Power Light Ion Engine Engine Light Ion Engine Propulsion Light Treads Treads Light Treads Wheel Wheel Utility High-capacity Storage Unit Storage High-capacity Storage Unit Processor Improved Signal Interpreter Protection Light Armor Plating Weapon Beam Cannon Energy Gun Beam Rifle Energy Cannon Beam Cannon Ballistic Gun Light Assault Rifle Launcher Rocket Launcher Build | -11 -10 -10 -9 -9 ------- Run | Scr Mat Min Mat Min Slots Evolved 2 | . . . 2 . Power . | . . . . . Propulsion . | . . . . . Utility 2 | . . . 2 . Weapon . | . . . . . Parts Attached 39 | 7 6 . 23 3 Power 6 | 1 . . 5 . Engine 6 | 1 . . 5 . Core . | . . . . . Reactor . | . . . . . Propulsion 9 | 2 2 . 4 1 Treads 7 | . 2 . 4 1 Leg . | . . . . . Wheel 2 | 2 . . . . Hover . | . . . . . Flight . | . . . . . Utility 8 | 1 2 . 4 1 Device . | . . . . . Storage 3 | 1 2 . . . Processor 1 | . . . 1 . Hackware . | . . . . . Protection 4 | . . . 3 1 Artifact . | . . . . . Weapon 16 | 3 2 . 10 1 Energy Gun 3 | 1 . . 2 . Energy Cannon 4 | . 2 . 2 . Ballistic Gun 2 | 2 . . . . Ballistic Cannon . | . . . . . Launcher 7 | . . . 6 1 Special Weapon . | . . . . . Impact Weapon . | . . . . . Slashing Weapon . | . . . . . Piercing Weapon . | . . . . . Special Melee Weapon . | . . . . . Unidentified Prototypes 1 | . . . 1 . Parts Lost 13 | . . . 8 5 Power 2 | . . . 2 . Propulsion 4 | . . . 2 2 Utility 1 | . . . 1 . Weapon 6 | . . . 3 3 Highest Loss Streak 5 | . . . 4 5 Average Slot Usage (%) 93 | . 99 100 90 81 Engine 10 | . 14 14 8 . Treads 22 | . 27 28 20 21 Storage 24 | . 27 28 22 22 Processor 6 | . . . 9 11 Protection 5 | . . . 8 6 Energy Gun 3 | . . . 5 . Energy Cannon 11 | . 20 28 4 . Ballistic Gun 1 | . 7 . . . Launcher 6 | . . . 9 20 Naked Turns . | . . . . . Heaviest Build 80 | 10 73 73 80 73 Greatest Support 40 | 20 40 40 40 40 Greatest Overweight (x) 22 | . 1 1 22 3 Average Overweight (x) 1 | . . 1 1 1 Largest Inventory Capacity 20 | 6 20 20 20 20 Average Capacity 19 | 5 19 20 20 20 Most Carried 20 | 4 11 12 20 14 Average Carried 13 | 2 10 11 15 13 Final Capacity 20 | 6 20 20 20 20 Final Carried 15 | 4 11 12 15 12 Class Distribution -------------------- 97% | Hauler-Mutant Dominant Class ---------------- Hauler-Mutant | -10/Materials Hauler-Mutant | -10/Mines Hauler-Mutant | -9/Materials Hauler-Mutant | -9/Mines Resources | -11 -10 -10 -9 -9 ----------- Run | Scr Mat Min Mat Min Matter Collected 738 | 190 207 2 339 . Remotely . | . . . . . Salvage Created 913 | . 207 47 659 . Parts 46 | . 9 3 33 1 Haulers Intercepted . | . . . . . Recyclers Shooed 1 | . . . 1 . Parts Field Recycled . | . . . . . Retrieved Matter . | . . . . . Parts Self-Destructed . | . . . . . Prevented . | . . . . . Kills | -11 -10 -10 -9 -9 ------- Run | Scr Mat Min Mat Min Combat Hostiles Destroyed 29 | . 7 3 19 . Guns 4 | . . . 4 . Cannons 15 | . 7 3 5 . AOE 9 | . . . 9 . Classes Destroyed 8 | . 2 . 6 . Worker 4 | . . . 3 1 Builder 1 | . . . 1 . Tunneler 1 | . . . 1 . Recycler 1 | . . . 1 . Watcher 1 | . . . 1 . Swarmer 10 | . 3 3 4 . Grunt 13 | . 4 . 9 . Sentry 6 | . . . 6 . Best Kill Streak 5 | . 3 3 5 1 Combat Bots Only 4 | . 3 3 4 . Max Kills in Single Turn 4 | . 1 1 4 1 Gunslinging . | . . . . . Exploded 3 | . . . 3 . Melee . | . . . . . Uniques/NPCs Destroyed . | . . . . . Combat | -11 -10 -10 -9 -9 -------- Run | Scr Mat Min Mat Min Damage Taken 2117 | . 120 43 1430 524 Core 419 | . 12 . 279 128 Absorbed by Shields . | . . . . . Core Remaining (%) 97 | 100 . 95 . . Volleys Fired 79 | . 13 5 59 2 Largest 2 | . 2 2 2 1 Hottest 120 | . 120 120 120 33 Shots Fired 154 | . 26 10 116 2 Gun 44 | . . . 44 . Cannon 75 | . 26 10 39 . Launcher 35 | . . . 33 2 Special . | . . . . . Kinetic . | . . . . . Thermal 119 | . 26 10 83 . Explosive 35 | . . . 33 2 Electromagnetic . | . . . . . Robot Hit Streak 18 | . 12 4 18 1 Robot Miss Streak 4 | . 1 1 4 1 Penetration Max . | . . . . . Secondary Targets . | . . . . . Shots Hit Robots 108 | . 20 7 80 1 Core Hits 53 | . 7 3 40 3 Critical Hits . | . . . . . Critical Kills . | . . . . . Critical Parts Destroyed . | . . . . . Melee Attacks . | . . . . . Impact . | . . . . . Slashing . | . . . . . Piercing . | . . . . . Sneak Attacks . | . . . . . Combat Hostiles . | . . . . . Follow-up Attacks . | . . . . . Damage Inflicted 2550 | . 331 106 1974 139 Guns 466 | . . . 466 . Cannons 944 | . 331 106 507 . Explosions 1140 | . . . 1001 139 Melee . | . . . . . Ramming . | . . . . . Kinetic . | . . . . . Thermal 1410 | . 331 106 973 . Explosive 1140 | . . . 1001 139 Electromagnetic . | . . . . . Impact . | . . . . . Slashing . | . . . . . Piercing . | . . . . . Highest Corruption . | . . . . . Average Corruption . | . . . . . Corruption Purged . | . . . . . Overload Shots . | . . . . . Overflow Damage 37 | . 12 . 24 1 Projectiles 12 | . 12 . . . Explosions 25 | . . . 24 1 Melee . | . . . . . Knockbacks . | . . . . . Impact . | . . . . . Kinetic . | . . . . . Secondary . | . . . . . Self-Inflicted Damage 32 | . . . 32 . Shots 1 | . . . 1 . Rammed . | . . . . . Targets Rammed . | . . . . . Kicked . | . . . . . Crushed . | . . . . . Highest Temperature 412 | . 368 300 412 . Average Temperature 126 | . 143 154 118 . Received Heat Transfer 594 | . 60 . 534 . Effects 6 | . 1 . 5 . Shutdowns 1 | . . . 1 . Energy Bleed 1 | . . . 1 . Interference 2 | . . . 2 . Matter Decay 1 | . 1 . . . Short Circuit 1 | . . . 1 . Siege Activations . | . . . . . Robots Corrupted . | . . . . . Combat Hostiles . | . . . . . Parts Fried . | . . . . . Impact Corruptions . | . . . . . Robots Melted 1 | . . . 1 . Combat Hostiles 1 | . . . 1 . Parts Melted 12 | . 4 2 6 . Heat Transferred 3182 | . 703 222 2257 . Parts Sabotaged . | . . . . . Parts Stolen . | . . . . . Parts Stripped . | . . . . . Power Chain Reactions . | . . . . . Missiles Intercepted . | . . . . . Alert | -11 -10 -10 -9 -9 ------- Run | Scr Mat Min Mat Min Peak Influence 365 | . 165 89 365 117 Initial 117 | . . 19 34 117 Average 149 | . 51 71 215 114 Maximum Alert Level 1 | . . . 1 . Low Security (%) 63 | 100 100 100 35 100 Level 1 36 | . . . 64 . Level 2 . | . . . . . Level 3 . | . . . . . Level 4 . | . . . . . Level 5 . | . . . . . High Security . | . . . . . Max Security . | . . . . . Squads Dispatched 5 | . 2 . 3 . Investigation 1 | . . . 1 . Extermination . | . . . . . Reinforcement 4 | . 2 . 2 . Assault . | . . . . . Garrison . | . . . . . Intercept . | . . . . . Construction Impeded . | . . . . . Haulers Reinforced . | . . . . . Stealth | -11 -10 -10 -9 -9 --------- Run | Scr Mat Min Mat Min Distress Signals 8 | . 1 . 7 . Communications Jammed . | . . . . . Distress Signals . | . . . . . Times Spotted 55 | . 15 3 35 2 Peak Tracking Total 5 | . 4 3 5 2 Tactical Retreats 3 | . . . 3 . Traps | -11 -10 -10 -9 -9 ------- Run | Scr Mat Min Mat Min Traps Triggered 1 | . . . 1 . Indirectly . | . . . . . Trap Hack Attempts . | . . . . . Triggered . | . . . . . Disarmed . | . . . . . Reprogrammed . | . . . . . Reused . | . . . . . Traps Extracted . | . . . . . Installed . | . . . . . Triggered . | . . . . . Machines | -11 -10 -10 -9 -9 ---------- Run | Scr Mat Min Mat Min Machines Disabled 6 | . . . 5 1 Max in Single Turn 3 | . . . 3 1 Machines Sabotaged . | . . . . . Garrisons Compromised . | . . . . . Overloaded Fab Kills . | . . . . . Fab Network Shutdowns . | . . . . . Hacking | -11 -10 -10 -9 -9 --------- Run | Scr Mat Min Mat Min Machines Accessed 6 | . 2 . 4 . Terminals 4 | . 2 . 2 . Fabricators . | . . . . . Repair Stations . | . . . . . Recycling Units 1 | . . . 1 . Scanalyzers 1 | . . . 1 . Garrison Access . | . . . . . Total Hacks 17 | . 2 . 15 . Successful 13 | . 1 . 12 . Failed 4 | . 1 . 3 . Catastrophic . | . . . . . Database Lockouts . | . . . . . Manual . | . . . . . Terminals 7 | . 2 . 5 . Fabricators . | . . . . . Repair Stations . | . . . . . Recycling Units 4 | . . . 4 . Scanalyzers 6 | . . . 6 . Garrison Access . | . . . . . Terminal Hacks 4 | . 1 . 3 . Record 2 | . . . 2 . Alert Level 1 | . . . 1 . Locate Traps 1 | . 1 . . . Fabricator Hacks . | . . . . . Repair Station Hacks . | . . . . . Recycling Unit Hacks 3 | . . . 3 . Recycle Component 1 | . . . 1 . Process 1 | . . . 1 . Retrieve Components 1 | . . . 1 . Scanalyzer 6 | . . . 6 . Insert Component 3 | . . . 3 . Analyze 3 | . . . 3 . Garrison Access Hacks . | . . . . . Unauthorized Hacks . | . . . . . Terminals . | . . . . . Fabricators . | . . . . . Repair Stations . | . . . . . Recycling Units . | . . . . . Scanalyzers . | . . . . . Garrison Access . | . . . . . Data Cores Recovered . | . . . . . Used . | . . . . . Hacking Detections 3 | . . . 3 . Full Trace Events 1 | . . . 1 . Feedback Events . | . . . . . Feedback Blocked . | . . . . . Robot Schematics Acquired . | . . . . . Robots Built . | . . . . . Matter . | . . . . . Time . | . . . . . Total Robot Build Rating . | . . . . . Part Schematics Acquired 3 | . . . 3 . Parts Built . | . . . . . Matter . | . . . . . Time . | . . . . . Total Part Build Rating . | . . . . . Parts Repaired . | . . . . . Time . | . . . . . Parts Recycled 1 | . . . 1 . Recycled Matter 19 | . . . 19 . Retrieved Matter . | . . . . . Retrieved Components . | . . . . . Parts Scanalyzed 3 | . . . 3 . Part Schematics Acquired 3 | . . . 3 . Parts Damaged . | . . . . . Bothacking | -11 -10 -10 -9 -9 ------------ Run | Scr Mat Min Mat Min Used RIF Installer . | . . . . . Robots Hacked . | . . . . . Non-combat . | . . . . . Combat . | . . . . . Robot Hacks Applied . | . . . . . Relay Couplers Released . | . . . . . Robots Rewired . | . . . . . Allies Hacked . | . . . . . Hacks Repelled . | . . . . . Allies | -11 -10 -10 -9 -9 -------- Run | Scr Mat Min Mat Min Total Allies . | . . . . . Largest Group . | . . . . . Highest-Rated Group . | . . . . . Highest-Rated Ally . | . . . . . Total Orders . | . . . . . Ally Attacks . | . . . . . Total Damage . | . . . . . Kills . | . . . . . Allies Corrupted . | . . . . . Allies Melted . | . . . . . Intel | -11 -10 -10 -9 -9 ------- Run | Scr Mat Min Mat Min Robot Analysis Total . | . . . . . Derelict Logs Recovered . | . . . . . Drone Launches . | . . . . . Drone Recoveries . | . . . . . Exploration | -11 -10 -10 -9 -9 ------------- Run | Scr Mat Min Mat Min Turns Passed 2534 | 59 517 384 1440 134 Spaces Moved 1115 | 54 248 205 550 58 Core 4 | 3 . . 1 . Treads 1054 | . 242 205 549 58 Legs . | . . . . . Wheels 57 | 51 6 . . . Hover . | . . . . . Flight . | . . . . . Fastest Speed 50 | 50 80 180 180 180 Average Speed 178 | 78 177 180 188 181 Slowest Speed 1150 | 80 180 180 1150 220 Overloaded Moves . | . . . . . Propulsion Burnouts . | . . . . . Robots Hopped . | . . . . . Cave-ins Triggered . | . . . . . Exploration Rate (%) 29 | 4 49 31 47 15 Regions Visited 4 Branch Regions 2 Pre-discovered Areas . | . . . . . Known Exits Taken 1 | . . . 1 . Unknown Exits Taken 3 | 1 1 1 . . Scrap Searched . | . . . . . Spaces Dug . | . . . . . Terrain Destroyed 203 | . . . 196 7 Melee . | . . . . . Projectile . | . . . . . AOE 203 | . . . 196 7 Terrain Rammed . | . . . . . Walls Destroyed . | . . . . . Machines Disabled . | . . . . . Actions | -11 -10 -10 -9 -9 --------- Run | Scr Mat Min Mat Min Total 1501 | 69 299 210 838 85 Wait 215 | . 14 . 179 22 Move 1111 | 53 247 204 549 58 Hop . | . . . . . Pick Up 44 | 9 13 1 21 . Fast Attach 2 | 1 1 . . . Attach 20 | 5 . . 12 3 Detach . | . . . . . Swap 17 | 1 5 . 11 . Drop 13 | . 6 . 7 . Fire 79 | . 13 5 59 2 Melee . | . . . . . Ram . | . . . . . Kick . | . . . . . Crush . | . . . . . Escape Stasis . | . . . . . Rewire . | . . . . . Trap . | . . . . . Miscellaneous . | . . . . . Route ------- -11/Scrapyard -10/Materials -10/Mines -9/Materials -9/Mines History --------- Turn | Location | Event 14 | -11/Scrapyard | Discovered new exit (range 15) 60 | -11/Scrapyard | Entered Materials 376 | -10/Materials | Build established: Hauler-Mutant 528 | -10/Materials | Discovered new exit (range 16) 577 | -10/Materials | Entered Mines 583 | -10/Mines | Met a Derelict bent on vengeance 599 | -10/Mines | Discovered new exit (range 6) 762 | -10/Mines | Found a damaged Exp. Sensor Array with a note attached 765 | -10/Mines | Found Prototype Device 961 | -10/Mines | Entered Materials 961 | -9/Materials | Evolved 2 slots: Utility x2 1531 | -9/Materials | Identified Exp. Sensor Array 2243 | -9/Materials | Core integrity fell below 50% 2279 | -9/Materials | Lost 4 parts (1p1n2w) 2370 | -9/Materials | Discovered new exit (range 14) 2399 | -9/Materials | Identified exit to Mines 2401 | -9/Materials | Entered Mines 2501 | -9/Mines | Assembled infested the area 2529 | -9/Mines | Core integrity fell below 20% 2535 | -9/Mines | Destroyed by D-53 Grenadier with Mini Grenade Launcher Last Messages --------------- 02491_ K-01 Serf collects debris. 02492_ K-01 Serf cleans the Seismic Survey Station. 02496_ K-01 Serf collects debris. 02501_ ALERT: Infestation in the mines, dispatching Demolisher response squad. 02501_ K-01 Serf collects debris. 02523_ C-30 ARC bursts open, deploying its payload. 02523_ D-53 Grenadier unfolds itself. 02525_ Lgt. Treads destroyed. 02525_ Rocket Launcher destroyed. 02529_ K-01 Serf collects debris. 02530_ Lgt. Treads destroyed. 02532_ Seismic Survey Station disabled. 02532_ Destroyed Wheel. [Achievement: Remodeling] 02532_ R-06 Scavenger destroyed. 02533_ The unstable cave ceiling collapses. 02534_ K-01 Serf destroyed. 02534_ Rocket Launcher destroyed. 02535_ The unstable cave ceiling collapses. Map ----- +----------------------------------------------------+ | ?????????????????????????????????????????????????? | | ?????????????????????????????????????????????????? | | ?????????????????????????????????????????????????? | | ?????????????????????????????????????????????????? | | ?????????????????????????????????????????????????? | | ?????????????????????????????????????????????????? | | ?????????????????????????????????????????????????? | | ?????????????????????????????????????????????????? | | ?????????????????????????????????????????????????? | | ?????????????????????????????????????????????????? | | ?????????????????????????????????????????????????? | | ?????????????????????????????????????????????????? | | ?????????????????????????????????????????????????? | | ?????????????????????????????????????????###### #? | | ?????????????????????????????????????????# #? | | ?????????????????????????????????????????# ######? | | ?????????????????????????????????????????# #?????? | | ?????????????????????????????????????????# #?????? | | ?????????????????????????????????????????# #?????? | | ??????????????????????????####???????????# #?????? | | ????????????????????####### ##??????????# #?????? | | ????????????????????# ###????????# #?????? | | ????????????????????# ##???????# #?????? | | ???????????????????## ##??????# #?????? | | ??????????????????## # #??????# #?????? | | ??????????????????# @ ##?????# #?????? | | ??????????????????# ####### #?????? | | ??????????????????## % #?????? | | ??????????????????# #?????? | | ??????????????????## d #### ##?????? | | ???????????????????# % * ##??# #??????? | | ???????????????????# d #???# #??????? | | ???????????????????## #??# #??????? | | ???????????????????# ## #?# #??????? | | ???????????????????# ##?###### ## ??????? | | ???????????????????# #???????# ####??????? | | ???????????????????# #???????# #?????????? | | ???????????????????# ##???????# ?????????? | | ???????????????????## ##????????## #????????? | | ????????????????????###????????????# #????????? | | ????????????????????????????????????# ##????????? | | ?????????????????????????????????????###?????????? | | ?????????????????????????????????????????????????? | | ?????????????????????????????????????????????????? | | | | | | | | | | | | | +----------------------------------------------------+ Best States ------------- Heat Dissipation 28 Energy Generation 10 Energy Capacity 250 Matter Stores 300 Matter Capacity 300 Sight Range 16 Terrain Scan Density 10 Armor Coverage 150 Weapon Shielding 33 Evasion (%) 44 Recoil Reduction 2 Item Schematics ----------------- Exp. Sensor Array | -9/Materials | Scanalyzed Rocket Launcher | -9/Materials | Scanalyzed Hvy. Ion Engine | -9/Materials | Scanalyzed Robot Schematics ------------------ None Fabricated ------------ Nothing Alien Tech Used ----------------- None Achievements -------------- It's Just You Remodeling Safety First Challenges ------------ None Game ------ Seed FluxImpactSteel Manual? 0 Play Time 00:29:15 Cumulative 4.5 hours Start 2021.01.28 @ 15:44:29 End 2021.01.28 @ 16:13:17 Sessions 1 Manual Loads 0 Difficulty Rogue Special Mode None Game No. 10 Rogue 10 Adventurer 0 Explorer 0 Win Type - Total 0 Types 0/0/0/0/0/0/0/0/0 Lore% 1 Gallery% 8 Achievement% 8 Wizard Run 0 Options --------- ASCII 0 Keyboard 0 Movement Mouse Keybinds 0 Fullscreen 1 Font 18/SmallcapsGlow Map View 76x50 Tactical HUD 1 Map Filters NONE Filters NONE Steam 1 RUN: f4800dae-6dc9-4e5b-9b67-c5fb9d483c8e